fUST/lending_fUST_20250510
["ID","MTS","AMOUNT","RATE_DAILY","PERIOD"]
[360540983,1746869444242,-1894.30464182,8.406e-05,2]
[360540984,1746869444251,-400.0,8.409e-05,2]
[360540985,1746869444261,-400.0,8.409e-05,2]
[360540986,1746869444271,-400.0,8.409e-05,2]
[360540987,1746869444280,-503.44916753,8.409e-05,2]
[360540988,1746869444290,-502.5317215,8.409e-05,2]
[360540989,1746869444300,-400.0,8.409e-05,2]
[360540990,1746869444310,-400.0,8.409e-05,2]
[360540991,1746869444320,-400.0,8.409e-05,2]
[360540992,1746869444330,-400.0,8.409e-05,2]
[360540993,1746869444340,-234.95775997,8.409e-05,2]
[360540994,1746869444350,-400.0,8.409e-05,2]
[360540995,1746869444360,-400.0,8.409e-05,2]
[360540996,1746869444370,-400.0,8.409e-05,2]
[360540997,1746869444380,-400.0,8.409e-05,2]
[360540998,1746869444390,-400.0,8.409e-05,2]
[360540999,1746869444403,-400.0,8.409e-05,2]
[360541000,1746869444413,-400.0,8.409e-05,2]
[360541001,1746869444423,-400.0,8.409e-05,2]
[360541002,1746869444433,-400.0,8.409e-05,2]
[360541003,1746869444443,-1680.82,8.409e-05,2]
[360541004,1746869444453,-400.0,8.409e-05,2]
[360541005,1746869444463,-402.17150574,8.409e-05,2]
[360541006,1746869444474,-400.0,8.409e-05,2]
[360541007,1746869444484,-400.0,8.409e-05,2]
[360541008,1746869444649,-529.88987654,8.409e-05,2]
[360541009,1746869444660,-1362.73,8.409e-05,2]
[360541010,1746869444671,-400.0,8.409e-05,2]
[360541011,1746869444681,-400.0,8.409e-05,2]
[360541012,1746869444692,-442.15,8.409e-05,2]
[360541013,1746869444702,-402.94131385,8.409e-05,2]
[360541014,1746869444712,-400.0,8.409e-05,2]
[360541015,1746869444723,-400.0,8.409e-05,2]
[360541016,1746869444732,-400.0,8.409e-05,2]
[360541017,1746869444742,-400.0,8.409e-05,2]
[360541018,1746869444752,-400.0,8.409e-05,2]
[360541019,1746869444765,-400.0,8.409e-05,2]
[360541020,1746869444775,-400.0,8.409e-05,2]
[360541021,1746869444784,-400.0,8.409e-05,2]
[360541022,1746869444794,-400.0,8.409e-05,2]
[360541023,1746869444803,-405.0776798,8.409e-05,2]
[360541024,1746869444813,-400.0,8.409e-05,2]
[360541025,1746869444824,-530.55,8.409e-05,2]
[360541026,1746869444833,-598.75,8.409e-05,2]
[360541027,1746869444844,-442.86,8.409e-05,2]
[360541028,1746869444853,-533.37,8.409e-05,2]
[360541029,1746869444862,-199.58386157,8.409e-05,2]
[360541030,1746869444911,-200.41613843,8.409e-05,2]
[360541031,1746869444922,-299.58386157,8.409e-05,2]
[360541071,1746869774428,9347.4823848,7.396e-05,2]
[360541073,1746869851896,1000.0,0.00017,30]
[360541074,1746869931227,500.0,0.00017,30]
[360541259,1746870577119,978.9817856,7.389e-05,2]
[360541277,1746870631996,-300.0,8.385e-05,2]
[360541279,1746870632006,-300.0,8.385e-05,2]
[360541281,1746870632016,-1200.0,8.385e-05,2]
[360541283,1746870632026,-300.0,8.385e-05,2]
[360541285,1746870632035,-400.0,8.386e-05,2]
[360541287,1746870632045,-406.55368706,8.386e-05,2]
[360541289,1746870632055,-423.76,8.386e-05,2]
[360541291,1746870632064,-400.0,8.386e-05,2]
[360541293,1746870632075,-1767.82,8.386e-05,2]
[360541295,1746870632084,-1392.51,8.386e-05,2]
[360541297,1746870632094,-943.81,8.386e-05,2]
[360541299,1746870632104,-4482.21,8.386e-05,2]
[360541301,1746870632113,-400.0,8.386e-05,2]
[360541303,1746870632124,-4007.54234012,8.386e-05,2]
[360541307,1746870632149,-5855.01765988,8.386e-05,2]
[360541309,1746870632162,-400.0,8.386e-05,2]
[360541311,1746870632176,-400.0,8.386e-05,2]
[360541313,1746870632186,-1223.81,8.386e-05,2]
[360541315,1746870632196,-400.0,8.386e-05,2]
[360541317,1746870632207,-400.0,8.386e-05,2]
[360541319,1746870632218,-400.0,8.386e-05,2]
[360541321,1746870632228,-4333.05739142,8.386e-05,2]
[360541331,1746870632628,-1040.75891475,8.386e-05,2]
[360541332,1746870632642,-4520.94369383,8.386e-05,2]
[360541333,1746870632652,-400.0,8.386e-05,2]
[360541334,1746870632666,-1629.21,8.386e-05,2]
[360541335,1746870632676,-569.73,8.386e-05,2]
[360541336,1746870632688,-3141.14,8.386e-05,2]
[360541337,1746870632698,-400.0,8.386e-05,2]
[360541338,1746870632708,-3040.28,8.386e-05,2]
[360541339,1746870632718,-400.0,8.386e-05,2]
[360541340,1746870632728,-3289.75,8.386e-05,2]
[360541341,1746870632738,-400.0,8.386e-05,2]
[360541342,1746870632749,-497.84550021,8.386e-05,2]
[360541343,1746870632964,-400.0,8.386e-05,2]
[360541344,1746870632974,-400.0,8.386e-05,2]
[360541345,1746870632985,-400.0,8.386e-05,2]
[360541346,1746870632995,-400.0,8.386e-05,2]
[360541347,1746870633006,-1443.54,8.386e-05,2]
[360541348,1746870633015,-400.0,8.386e-05,2]
[360541349,1746870633025,-3808.21,8.386e-05,2]
[360541350,1746870633035,-400.0,8.386e-05,2]
[360541351,1746870633046,-400.0,8.386e-05,2]
[360541352,1746870633055,-400.0,8.386e-05,2]
[360541353,1746870633066,-400.0,8.386e-05,2]
[360541354,1746870633076,-3088.71,8.386e-05,2]
[360541355,1746870633086,-385.11158534,8.387e-05,2]
[360541364,1746870638006,-400.0,8.386e-05,2]
[360541365,1746870638016,-400.0,8.386e-05,2]
[360541366,1746870638027,-14.88841466,8.387e-05,2]
[360541367,1746870638038,-400.0,8.387e-05,2]
[360541368,1746870638050,-400.0,8.387e-05,2]
[360541369,1746870638060,-400.0,8.387e-05,2]
[360541370,1746870638069,-400.0,8.387e-05,2]
[360541371,1746870638078,-400.0,8.387e-05,2]
[360541372,1746870638087,-400.0,8.387e-05,2]
[360541373,1746870638096,-400.0,8.387e-05,2]
[360541374,1746870638106,-1275.32,8.387e-05,2]
[360541375,1746870638118,-400.0,8.387e-05,2]
[360541376,1746870638128,-400.0,8.387e-05,2]
[360541377,1746870638138,-722.93,8.387e-05,2]
[360541379,1746870638148,-400.0,8.387e-05,2]
[360541381,1746870638158,-505.93470078,8.387e-05,2]
[360541383,1746870638179,-505.53439538,8.387e-05,2]
[360541385,1746870638189,-400.0,8.387e-05,2]
[360541386,1746870638198,-400.0,8.387e-05,2]
[360541387,1746870638208,-339.80055464,8.387e-05,2]
[360541388,1746870638218,-400.0,8.387e-05,2]
[360541389,1746870638230,-400.0,8.387e-05,2]
[360541390,1746870638239,-400.0,8.387e-05,2]
[360541391,1746870638249,-408.14908262,8.387e-05,2]
[360541392,1746870638258,-400.0,8.387e-05,2]
[360541393,1746870638268,-400.0,8.387e-05,2]
[360541394,1746870638277,-400.0,8.387e-05,2]
[360541395,1746870638286,-400.0,8.387e-05,2]
[360541396,1746870638296,-400.0,8.387e-05,2]
[360541397,1746870638305,-334.06321125,8.387e-05,2]
[360541398,1746870638314,-1000.0,8.387e-05,2]
[360541399,1746870638324,-400.0,8.387e-05,2]
[360541400,1746870638333,-400.0,8.387e-05,2]
[360541401,1746870638343,-3362.19,8.387e-05,2]
[360541402,1746870638353,-400.0,8.387e-05,2]
[360541403,1746870638362,-400.0,8.387e-05,2]
[360541404,1746870638374,-400.0,8.387e-05,2]
[360541405,1746870638383,-400.0,8.387e-05,2]
[360541406,1746870638393,-400.0,8.387e-05,2]
[360541407,1746870638402,-405.42075014,8.387e-05,2]
[360541408,1746870638413,-400.0,8.387e-05,2]
[360541409,1746870638423,-400.0,8.387e-05,2]
[360541410,1746870638433,-400.0,8.387e-05,2]
[360541411,1746870638442,-400.0,8.387e-05,2]
[360541412,1746870638451,-400.0,8.387e-05,2]
[360541413,1746870638461,-400.0,8.387e-05,2]
[360541414,1746870638470,-400.0,8.387e-05,2]
[360541415,1746870638480,-1294.58,8.387e-05,2]
[360541416,1746870638489,-400.0,8.387e-05,2]
[360541417,1746870638498,-400.0,8.387e-05,2]
[360541418,1746870638508,-400.0,8.387e-05,2]
[360541419,1746870638518,-400.0,8.387e-05,2]
[360541420,1746870638527,-1720.91,8.387e-05,2]
[360541421,1746870638537,-400.0,8.387e-05,2]
[360541422,1746870638547,-400.0,8.387e-05,2]
[360541423,1746870638556,-400.0,8.387e-05,2]
[360541424,1746870638566,-400.0,8.387e-05,2]
[360541425,1746870638575,-439.01,8.387e-05,2]
[360541426,1746870638584,-400.0,8.387e-05,2]
[360541427,1746870638801,-400.0,8.387e-05,2]
[360541428,1746870638812,-2057.1,8.387e-05,2]
[360541429,1746870638822,-400.0,8.387e-05,2]
[360541430,1746870638832,-400.0,8.387e-05,2]
[360541431,1746870638844,-400.0,8.387e-05,2]
[360541432,1746870638854,-400.0,8.387e-05,2]
[360541433,1746870638863,-514.6672221,8.387e-05,2]
[360541434,1746870638873,-914.25,8.387e-05,2]
[360541435,1746870638882,-400.0,8.387e-05,2]
[360541436,1746870638892,-423.66,8.387e-05,2]
[360541437,1746870638901,-548.59902412,8.387e-05,2]
[360541438,1746870638911,-463.02540343,8.387e-05,2]
[360541439,1746870638922,-403.74797581,8.387e-05,2]
[360541440,1746870638931,-657.33,8.387e-05,2]
[360541441,1746870638942,-2029.53,8.387e-05,2]
[360541442,1746870638954,-400.0,8.387e-05,2]
[360541443,1746870638963,-400.0,8.387e-05,2]
[360541444,1746870638972,-400.0,8.387e-05,2]
[360541445,1746870638984,-400.0,8.387e-05,2]
[360541446,1746870638997,-400.0,8.387e-05,2]
[360541447,1746870639008,-400.0,8.387e-05,2]
[360541448,1746870639018,-2535.82,8.387e-05,2]
[360541449,1746870639029,-400.0,8.387e-05,2]
[360541450,1746870639040,-400.0,8.387e-05,2]
[360541451,1746870639050,-1017.33,8.387e-05,2]
[360541452,1746870639060,-401.70505174,8.387e-05,2]
[360541453,1746870639069,-400.0,8.387e-05,2]
[360541454,1746870639079,-400.0,8.387e-05,2]
[360541455,1746870639088,-4509.23,8.387e-05,2]
[360541456,1746870639098,-400.0,8.387e-05,2]
[360541457,1746870639107,-400.0,8.387e-05,2]
[360541458,1746870639117,-500.21,8.387e-05,2]
[360541459,1746870639126,-236.48217118,8.387e-05,2]
[360541460,1746870639135,-478.96,8.387e-05,2]
[360541461,1746870639144,-405.99024233,8.387e-05,2]
[360541462,1746870639154,-678.06,8.387e-05,2]
[360541463,1746870639165,-400.0,8.387e-05,2]
[360541464,1746870639174,-400.0,8.387e-05,2]
[360541465,1746870639184,-408.57682622,8.387e-05,2]
[360541466,1746870639196,-400.0,8.387e-05,2]
[360541467,1746870639207,-400.0,8.387e-05,2]
[360541468,1746870639217,-923.41,8.387e-05,2]
[360541469,1746870639226,-687.77,8.387e-05,2]
[360541470,1746870639236,-445.66,8.387e-05,2]
[360541471,1746870639245,-400.0,8.387e-05,2]
[360541472,1746870639254,-400.0,8.387e-05,2]
[360541473,1746870639264,-419.84,8.387e-05,2]
[360541474,1746870639274,-618.72,8.387e-05,2]
[360541475,1746870639283,-400.0,8.387e-05,2]
[360541476,1746870639292,-400.0,8.387e-05,2]
[360541477,1746870639302,-400.0,8.387e-05,2]
[360541478,1746870639312,-413.76,8.387e-05,2]
[360541479,1746870639323,-400.0,8.387e-05,2]
[360541480,1746870639332,-421.93,8.387e-05,2]
[360541481,1746870639342,-400.0,8.387e-05,2]
[360541482,1746870639351,-400.0,8.387e-05,2]
[360541483,1746870639360,-400.0,8.387e-05,2]
[360541484,1746870639370,-400.0,8.387e-05,2]
[360541485,1746870639379,-400.0,8.387e-05,2]
[360541486,1746870639389,-400.0,8.387e-05,2]
[360541487,1746870639398,-2881.19,8.387e-05,2]
[360541488,1746870639408,-400.0,8.387e-05,2]
[360541489,1746870639419,-400.0,8.387e-05,2]
[360541490,1746870639429,-880.59,8.387e-05,2]
[360541491,1746870639439,-549.27,8.387e-05,2]
[360541492,1746870639449,-695.32,8.387e-05,2]
[360541493,1746870639458,-2482.88,8.387e-05,2]
[360541494,1746870639468,-400.0,8.387e-05,2]
[360541495,1746870639478,-400.0,8.387e-05,2]
[360541496,1746870639487,-3273.87,8.387e-05,2]
[360541497,1746870639497,-400.0,8.387e-05,2]
[360541498,1746870639507,-400.0,8.387e-05,2]
[360541499,1746870639517,-401.82034042,8.387e-05,2]
[360541500,1746870639527,-235.3734462,8.387e-05,2]
[360541501,1746870639537,-400.0,8.387e-05,2]
[360541502,1746870639547,-480.48,8.387e-05,2]
[360541503,1746870639559,-400.0,8.387e-05,2]
[360541504,1746870639577,-403.88278876,8.387e-05,2]
[360541505,1746870639587,-400.0,8.387e-05,2]
[360541506,1746870639597,-400.0,8.387e-05,2]
[360541507,1746870639607,-840.45,8.387e-05,2]
[360541508,1746870639617,-400.0,8.387e-05,2]
[360541510,1746870639627,-400.0,8.387e-05,2]
[360541512,1746870639637,-400.0,8.387e-05,2]
[360541514,1746870639647,-403.01414264,8.387e-05,2]
[360541516,1746870639656,-400.0,8.387e-05,2]
[360541518,1746870639667,-412.09155928,8.387e-05,2]
[360541520,1746870639676,-513.5476979,8.387e-05,2]
[360541522,1746870639686,-244.31958243,8.387e-05,2]
[360541523,1746870639696,-400.0,8.387e-05,2]
[360541524,1746870639706,-400.0,8.387e-05,2]
[360541525,1746870639716,-400.0,8.387e-05,2]
[360541526,1746870639726,-400.0,8.387e-05,2]
[360541527,1746870639735,-400.0,8.387e-05,2]
[360541528,1746870639745,-10045.25,8.387e-05,2]
[360541529,1746870639755,-503.87469476,8.387e-05,2]
[360541530,1746870639765,-230.46611455,8.387e-05,2]
[360541531,1746870639775,-404.25439894,8.387e-05,2]
[360541532,1746870639785,-400.0,8.387e-05,2]
[360541533,1746870639796,-2235.38,8.387e-05,2]
[360541534,1746870639806,-400.0,8.387e-05,2]
[360541535,1746870639816,-400.0,8.387e-05,2]
[360541536,1746870639826,-2976.66,8.387e-05,2]
[360541537,1746870639836,-400.0,8.387e-05,2]
[360541538,1746870639846,-995.83,8.387e-05,2]
[360541539,1746870639856,-736.41,8.387e-05,2]
[360541540,1746870639866,-400.0,8.387e-05,2]
[360541541,1746870639875,-1259.44,8.387e-05,2]
[360541542,1746870639885,-400.0,8.387e-05,2]
[360541543,1746870639895,-400.0,8.387e-05,2]
[360541544,1746870639905,-400.0,8.387e-05,2]
[360541545,1746870639917,-1466.93,8.387e-05,2]
[360541546,1746870639927,-700.42,8.387e-05,2]
[360541547,1746870639937,-1011.97,8.387e-05,2]
[360541548,1746870639947,-400.0,8.387e-05,2]
[360541549,1746870639956,-400.0,8.387e-05,2]
[360541550,1746870639966,-176.92967689,8.387e-05,2]
[360541551,1746870639976,-400.0,8.388e-05,2]
[360541552,1746870639986,-400.0,8.388e-05,2]
[360541553,1746870639995,-502.69641826,8.388e-05,2]
[360541554,1746870640005,-400.0,8.388e-05,2]
[360541555,1746870640015,-400.0,8.388e-05,2]
[360541556,1746870640024,-400.0,8.388e-05,2]
[360541557,1746870640035,-400.0,8.388e-05,2]
[360541558,1746870640045,-400.0,8.388e-05,2]
[360541559,1746870640055,-400.0,8.388e-05,2]
[360541560,1746870640065,-521.56,8.388e-05,2]
[360541561,1746870640075,-400.0,8.388e-05,2]
[360541562,1746870640085,-400.0,8.388e-05,2]
[360541563,1746870640095,-1120.02,8.388e-05,2]
[360541564,1746870640105,-400.0,8.388e-05,2]
[360541565,1746870640115,-400.0,8.388e-05,2]
[360541566,1746870640124,-400.0,8.388e-05,2]
[360541567,1746870640134,-400.0,8.388e-05,2]
[360541568,1746870640144,-738.72,8.388e-05,2]
[360541570,1746870640153,-400.0,8.388e-05,2]
[360541571,1746870640164,-400.0,8.388e-05,2]
[360541572,1746870640174,-897.87,8.388e-05,2]
[360541573,1746870640184,-400.0,8.388e-05,2]
[360541574,1746870640197,-1154.59,8.388e-05,2]
[360541575,1746870640206,-400.0,8.388e-05,2]
[360541576,1746870640216,-1140.03,8.388e-05,2]
[360541577,1746870640225,-393.16208305,8.388e-05,2]
[360541578,1746870640235,-453.31093363,8.388e-05,2]
[360541579,1746870640245,-725.8,8.388e-05,2]
[360541580,1746870640256,-731.01,8.388e-05,2]
[360541582,1746870640266,-446.67770945,8.388e-05,2]
[360541583,1746870640276,-500.0,8.388e-05,2]
[360541584,1746870640285,-500.0,8.388e-05,2]
[360541585,1746870640295,-400.0,8.388e-05,2]
[360541586,1746870640305,-1336.16,8.388e-05,2]
[360541588,1746870640315,-840.76,8.388e-05,2]
[360541589,1746870640325,-400.0,8.388e-05,2]
[360541590,1746870640334,-2974.18,8.388e-05,2]
[360541591,1746870640344,-400.0,8.388e-05,2]
[360541592,1746870640354,-798.34,8.388e-05,2]
[360541593,1746870640364,-4248.44,8.388e-05,2]
[360541594,1746870640374,-400.0,8.388e-05,2]
[360541595,1746870640383,-781.48,8.388e-05,2]
[360541596,1746870640393,-400.0,8.388e-05,2]
[360541597,1746870640402,-1259.35,8.388e-05,2]
[360541598,1746870640412,-400.0,8.388e-05,2]
[360541599,1746870640425,-1951.72,8.388e-05,2]
[360541600,1746870640435,-400.0,8.388e-05,2]
[360541601,1746870640444,-400.0,8.388e-05,2]
[360541602,1746870640454,-2465.39,8.388e-05,2]
[360541603,1746870640463,-2465.39,8.388e-05,2]
[360541604,1746870640473,-537.66,8.388e-05,2]
[360541605,1746870640483,-400.0,8.388e-05,2]
[360541606,1746870640492,-400.0,8.388e-05,2]
[360541607,1746870640502,-1904.62,8.388e-05,2]
[360541608,1746870640511,-485.38,8.388e-05,2]
[360541609,1746870640521,-230.51182797,8.388e-05,2]
[360541610,1746870640530,-578.82,8.388e-05,2]
[360541611,1746870640543,-415.66,8.388e-05,2]
[360541612,1746870640555,-400.0,8.388e-05,2]
[360541613,1746870640566,-419.57,8.388e-05,2]
[360541614,1746870640577,-400.0,8.388e-05,2]
[360541615,1746870640587,-1030.69,8.388e-05,2]
[360541616,1746870640597,-1216.03,8.388e-05,2]
[360541617,1746870640606,-400.0,8.388e-05,2]
[360541618,1746870640616,-400.0,8.388e-05,2]
[360541619,1746870640626,-400.0,8.388e-05,2]
[360541620,1746870640636,-400.0,8.388e-05,2]
[360541621,1746870640646,-400.0,8.388e-05,2]
[360541622,1746870640655,-400.0,8.388e-05,2]
[360541623,1746870640666,-400.0,8.388e-05,2]
[360541624,1746870640676,-827.12,8.388e-05,2]
[360541625,1746870640686,-400.0,8.388e-05,2]
[360541626,1746870640695,-1045.58,8.388e-05,2]
[360541627,1746870640705,-1085.72,8.388e-05,2]
[360541628,1746870640715,-530.26,8.388e-05,2]
[360541629,1746870640724,-400.0,8.388e-05,2]
[360541630,1746870640734,-1076.35,8.388e-05,2]
[360541631,1746870640743,-2726.35,8.388e-05,2]
[360541632,1746870640752,-254.32956884,8.388e-05,2]
[360541633,1746870640762,-400.0,8.388e-05,2]
[360541634,1746870640771,-400.99,8.388e-05,2]
[360541635,1746870640781,-1003.06,8.388e-05,2]
[360541636,1746870640790,-400.0,8.388e-05,2]
[360541637,1746870640799,-5216.33,8.388e-05,2]
[360541638,1746870640810,-400.0,8.388e-05,2]
[360541639,1746870640819,-559.21,8.388e-05,2]
[360541640,1746870640828,-400.0,8.388e-05,2]
[360541641,1746870640839,-1044.25,8.388e-05,2]
[360541642,1746870640849,-400.0,8.388e-05,2]
[360541643,1746870640858,-400.0,8.388e-05,2]
[360541644,1746870640867,-383.84259226,8.388e-05,2]
[360541645,1746870640877,-400.0,8.388e-05,2]
[360541646,1746870640886,-487.65,8.388e-05,2]
[360541647,1746870640895,-500.0,8.388e-05,2]
[360541648,1746870640904,-960.22,8.388e-05,2]
[360541649,1746870640914,-2318.59,8.388e-05,2]
[360541650,1746870640924,-409.77771644,8.388e-05,2]
[360541651,1746870640933,-8900.62,8.388e-05,2]
[360541652,1746870640942,-400.0,8.388e-05,2]
[360541653,1746870640952,-520.15,8.388e-05,2]
[360541654,1746870640961,-947.93,8.388e-05,2]
[360541655,1746870640970,-570.34,8.388e-05,2]
[360541656,1746870641129,-448.9,8.388e-05,2]
[360541657,1746870641140,-942.73,8.388e-05,2]
[360541658,1746870641150,-400.0,8.388e-05,2]
[360541659,1746870641159,-893.07,8.388e-05,2]
[360541660,1746870641173,-10131.93,8.388e-05,2]
[360541661,1746870641182,-1661.7,8.388e-05,2]
[360541662,1746870641195,-2594.39,8.388e-05,2]
[360541663,1746870641204,-400.0,8.388e-05,2]
[360541664,1746870641214,-1255.08,8.388e-05,2]
[360541665,1746870641223,-400.0,8.388e-05,2]
[360541666,1746870641233,-3403.33,8.388e-05,2]
[360541667,1746870641241,-1627.77,8.388e-05,2]
[360541668,1746870641251,-400.0,8.388e-05,2]
[360541669,1746870641262,-400.0,8.388e-05,2]
[360541670,1746870641272,-1095.95,8.388e-05,2]
[360541671,1746870641281,-151.75907,8.388e-05,2]
[360541672,1746870641290,-5037.5,8.388e-05,2]
[360541673,1746870641299,-400.0,8.388e-05,2]
[360541674,1746870641308,-450.4,8.388e-05,2]
[360541675,1746870641317,-611.21,8.388e-05,2]
[360541676,1746870641326,-1453.73,8.388e-05,2]
[360541677,1746870641336,-400.0,8.388e-05,2]
[360541678,1746870641345,-1203.18,8.388e-05,2]
[360541679,1746870641353,-400.0,8.388e-05,2]
[360541680,1746870641362,-151.0,8.388e-05,2]
[360541681,1746870641372,-2647.33,8.388e-05,2]
[360541682,1746870641382,-400.0,8.388e-05,2]
[360541683,1746870641390,-557.0,8.388e-05,2]
[360541684,1746870641399,-400.0,8.388e-05,2]
[360541685,1746870641409,-400.0,8.388e-05,2]
[360541686,1746870641419,-400.0,8.388e-05,2]
[360541687,1746870641429,-1603.28,8.388e-05,2]
[360541688,1746870641439,-678.79,8.388e-05,2]
[360541689,1746870641448,-561.32,8.388e-05,2]
[360541690,1746870641457,-400.0,8.388e-05,2]
[360541691,1746870641466,-1777.43,8.388e-05,2]
[360541692,1746870641475,-400.0,8.388e-05,2]
[360541693,1746870641485,-819.62,8.388e-05,2]
[360541694,1746870641493,-400.0,8.388e-05,2]
[360541695,1746870641503,-500.0,8.389e-05,2]
[360541696,1746870641512,-578.05189151,8.389e-05,2]
[360541697,1746870641521,-400.0,8.389e-05,2]
[360541698,1746870641531,-400.0,8.389e-05,2]
[360541699,1746870641540,-400.0,8.389e-05,2]
[360541700,1746870641549,-400.0,8.389e-05,2]
[360541701,1746870641559,-400.0,8.389e-05,2]
[360541702,1746870641568,-506.81740577,8.389e-05,2]
[360541703,1746870641577,-411.81399734,8.389e-05,2]
[360541704,1746870641587,-400.0,8.389e-05,2]
[360541705,1746870641596,-400.0,8.389e-05,2]
[360541706,1746870641606,-400.0,8.389e-05,2]
[360541707,1746870641616,-405.00268367,8.389e-05,2]
[360541708,1746870641625,-282.63795893,8.389e-05,2]
[360541709,1746870641634,-400.0,8.389e-05,2]
[360541710,1746870641643,-400.0,8.389e-05,2]
[360541711,1746870641652,-400.0,8.389e-05,2]
[360541712,1746870641662,-194.83305469,8.389e-05,2]
[360541713,1746870641674,-400.0,8.389e-05,2]
[360541714,1746870641684,-400.0,8.389e-05,2]
[360541715,1746870641693,-400.0,8.389e-05,2]
[360541716,1746870641703,-400.0,8.389e-05,2]
[360541717,1746870641712,-400.0,8.389e-05,2]
[360541718,1746870641724,-400.0,8.389e-05,2]
[360541719,1746870641736,-400.0,8.389e-05,2]
[360541720,1746870641746,-400.0,8.389e-05,2]
[360541721,1746870641756,-400.0,8.389e-05,2]
[360541722,1746870641765,-400.0,8.389e-05,2]
[360541723,1746870641775,-400.0,8.389e-05,2]
[360541724,1746870641787,-500.0,8.389e-05,2]
[360541725,1746870641796,-500.0,8.389e-05,2]
[360541726,1746870641812,-500.0,8.389e-05,2]
[360541727,1746870641822,-2465.39,8.389e-05,2]
[360541728,1746870641831,-2465.39,8.389e-05,2]
[360541729,1746870641844,-2465.39,8.389e-05,2]
[360541730,1746870641855,-356.015929,8.389e-05,2]
[360541731,1746870641866,-356.015929,8.389e-05,2]
[360541732,1746870641875,-151.0,8.389e-05,2]
[360541733,1746870641884,-151.0,8.389e-05,2]
[360541734,1746870641894,-166.125865,8.389e-05,2]
[360541735,1746870641904,-151.0,8.389e-05,2]
[360541736,1746870641914,-151.0,8.389e-05,2]
[360541737,1746870641926,-1664.583735,8.389e-05,2]
[360541738,1746870641936,-1664.583735,8.389e-05,2]
[360541739,1746870641945,-151.0,8.389e-05,2]
[360541740,1746870641954,-151.0,8.389e-05,2]
[360541741,1746870641964,-192.188702,8.389e-05,2]
[360541742,1746870641973,-192.188702,8.389e-05,2]
[360541743,1746870641982,-151.0,8.389e-05,2]
[360541744,1746870641991,-426.215141,8.389e-05,2]
[360541745,1746870642001,-426.215141,8.389e-05,2]
[360541746,1746870642010,-400.0,8.39e-05,2]
[360541747,1746870642020,-400.0,8.39e-05,2]
[360541748,1746870642030,-400.0,8.39e-05,2]
[360541749,1746870642039,-400.0,8.39e-05,2]
[360541750,1746870642049,-400.0,8.39e-05,2]
[360541751,1746870642058,-400.0,8.39e-05,2]
[360541752,1746870642067,-400.0,8.39e-05,2]
[360541753,1746870642077,-400.0,8.39e-05,2]
[360541754,1746870642086,-400.0,8.39e-05,2]
[360541755,1746870642096,-500.0,8.39e-05,2]
[360541756,1746870642105,-500.0,8.39e-05,2]
[360541757,1746870642115,-500.0,8.39e-05,2]
[360541758,1746870642124,-500.0,8.39e-05,2]
[360541759,1746870642135,-500.0,8.39e-05,2]
[360541760,1746870642144,-500.0,8.39e-05,2]
[360541761,1746870642154,-500.0,8.39e-05,2]
[360541762,1746870642163,-500.0,8.39e-05,2]
[360541763,1746870642178,-500.0,8.39e-05,2]
[360541764,1746870642188,-500.0,8.39e-05,2]
[360541765,1746870642197,-500.0,8.39e-05,2]
[360541766,1746870642207,-2465.39,8.39e-05,2]
[360541767,1746870642217,-2465.39,8.39e-05,2]
[360541768,1746870642226,-2465.39,8.39e-05,2]
[360541769,1746870642235,-2465.39,8.39e-05,2]
[360541770,1746870642248,-2465.39,8.39e-05,2]
[360541771,1746870642258,-2465.39,8.39e-05,2]
[360541772,1746870642268,-2465.39,8.39e-05,2]
[360541773,1746870642278,-2465.39,8.39e-05,2]
[360541774,1746870642288,-2465.39,8.39e-05,2]
[360541775,1746870642297,-2465.39,8.39e-05,2]
[360541776,1746870642306,-2465.39,8.39e-05,2]
[360541777,1746870642316,-151.0,8.39e-05,2]